fUST/lending_fUST_20250726
["ID","MTS","AMOUNT","RATE_DAILY","PERIOD"]
[374982881,1753488653967,-1068.91834299,0.00021968,2]
[374982882,1753488653977,-500.0,0.00021968,2]
[374982883,1753488653986,-1500.0,0.00021968,2]
[374982884,1753488653996,-1500.0,0.00021968,2]
[374982885,1753488654006,-1000.0,0.00021968,2]
[374982886,1753488654015,-150.0,0.00021973,2]
[374982887,1753488654026,-309.28,0.00022,7]
[374982888,1753488654035,-1022.34,0.00022,7]
[374982889,1753488654046,-5382.55,0.00022,7]
[374982890,1753488654058,-34407.1,0.00022,2]
[374982891,1753488654067,-1588.716506,0.00022,7]
[374982892,1753488654077,-1588.716506,0.00022,7]
[374982893,1753488654086,-151.0,0.00022,2]
[374982894,1753488654096,-460.0,0.00022081,2]
[374982895,1753488654106,-460.0,0.00022081,2]
[374982896,1753488654192,-460.0,0.00022081,2]
[374982897,1753488654203,-1383.53,0.00022081,2]
[374982898,1753488654214,-460.0,0.00022081,2]
[374982899,1753488654224,-360.0,0.00022096,2]
[374982900,1753488654233,-2500.0,0.00022164,2]
[374982901,1753488654242,-2000.0,0.00022164,2]
[374982902,1753488654252,-2000.0,0.00022164,2]
[374982903,1753488654261,-460.0,0.00022179,2]
[374982904,1753488654270,-3315.82,0.0002218,2]
[374982905,1753488654281,-2047.68,0.0002218,2]
[374982906,1753488654290,-460.0,0.0002218,2]
[374982907,1753488654300,-2016.92,0.0002218,2]
[374982908,1753488654309,-460.0,0.0002218,2]
[374982909,1753488654319,-1442.16,0.0002218,2]
[374982910,1753488654328,-460.0,0.0002218,2]
[374982911,1753488654338,-904.06,0.0002218,2]
[374982912,1753488654347,-460.0,0.0002218,2]
[374982913,1753488654357,-460.0,0.0002218,2]
[374982914,1753488654367,-460.0,0.0002218,2]
[374982915,1753488654376,-460.0,0.0002218,2]
[374982916,1753488654386,-460.0,0.0002218,2]
[374982917,1753488654396,-248.91,0.00022182,2]
[374982918,1753488654405,-460.0,0.00022182,2]
[374982919,1753488654414,-460.0,0.00022182,2]
[374982920,1753488654424,-460.0,0.00022182,2]
[374982921,1753488654433,-1000.9,0.00022182,2]
[374982922,1753488654443,-460.0,0.00022182,2]
[374982923,1753488654452,-674.06,0.00022182,2]
[374982924,1753488654461,-460.0,0.00022182,2]
[374982925,1753488654470,-460.0,0.00022182,2]
[374982926,1753488654480,-460.0,0.00022182,2]
[374982927,1753488654490,-460.0,0.00022182,2]
[374982928,1753488654500,-460.0,0.00022182,2]
[374982929,1753488654510,-3654.8,0.00022182,2]
[374982930,1753488654520,-460.0,0.00022182,2]
[374982931,1753488654529,-460.0,0.00022182,2]
[374982932,1753488654539,-630.63,0.00022182,2]
[374982933,1753488654548,-460.0,0.00022182,2]
[374982934,1753488654559,-460.0,0.00022182,2]
[374982935,1753488654568,-500.0,0.00022182,2]
[374982936,1753488654578,-586.3,0.00022182,2]
[374982937,1753488654588,-460.0,0.00022182,2]
[374982938,1753488654597,-460.0,0.00022182,2]
[374982939,1753488654607,-460.0,0.00022182,2]
[374982940,1753488654617,-460.0,0.00022183,2]
[374982941,1753488654627,-460.0,0.00022183,2]
[374982942,1753488654637,-393.93213674,0.00022183,2]
[374982943,1753488654646,-460.0,0.00022183,2]
[374982944,1753488654656,-460.0,0.00022183,2]
[374982945,1753488654665,-460.0,0.00022183,2]
[374982946,1753488654674,-460.0,0.00022183,2]
[374982947,1753488654683,-460.0,0.00022183,2]
[374982948,1753488654693,-460.0,0.00022183,2]
[374982949,1753488654702,-641.9,0.00022183,2]
[374982950,1753488654712,-460.0,0.00022183,2]
[374982951,1753488654722,-862.63,0.00022183,2]
[374982952,1753488654731,-460.0,0.00022183,2]
[374982953,1753488654740,-151.0,0.00022183,7]
[374982954,1753488654750,-460.0,0.00022183,2]
[374982955,1753488654759,-819.06,0.00022183,2]
[374982956,1753488654768,-223.65,0.00022183,2]
[374982957,1753488654778,-665.9,0.00022183,2]
[374982958,1753488654787,-706.17,0.00022183,2]
[374982959,1753488654797,-460.0,0.00022183,2]
[374982960,1753488654808,-598.24,0.00022183,2]
[374982961,1753488654818,-460.0,0.00022184,2]
[374982962,1753488654827,-460.0,0.00022355,2]
[374982963,1753488654836,-460.0,0.00022355,2]
[374982964,1753488654846,-460.0,0.00022355,2]
[374982965,1753488654856,-1383.53,0.00022355,2]
[374982966,1753488654865,-460.0,0.00022355,2]
[374982967,1753488654875,-3315.82,0.00022454,2]
[374982968,1753488654885,-2047.68,0.00022454,2]
[374982969,1753488654895,-460.0,0.00022454,2]
[374982970,1753488654905,-2016.92,0.00022454,2]
[374982971,1753488654915,-460.0,0.00022454,2]
[374982972,1753488654925,-1442.16,0.00022454,2]
[374982973,1753488654935,-460.0,0.00022454,2]
[374982974,1753488654945,-904.06,0.00022454,2]
[374982975,1753488654954,-460.0,0.00022454,2]
[374982976,1753488654964,-460.0,0.00022454,2]
[374982977,1753488654973,-460.0,0.00022454,2]
[374982978,1753488654983,-460.0,0.00022454,2]
[374982979,1753488654993,-460.0,0.00022454,2]
[374982980,1753488655003,-460.0,0.00022456,2]
[374982981,1753488655013,-460.0,0.00022456,2]
[374982982,1753488655023,-460.0,0.00022456,2]
[374982983,1753488655032,-1000.9,0.00022456,2]
[374982984,1753488655042,-460.0,0.00022456,2]
[374982985,1753488655051,-674.06,0.00022456,2]
[374982986,1753488655061,-460.0,0.00022456,2]
[374982987,1753488655070,-460.0,0.00022456,2]
[374982988,1753488655080,-460.0,0.00022456,2]
[374982989,1753488655089,-460.0,0.00022456,2]
[374982990,1753488655099,-605.83,0.00022456,2]
[374982991,1753488655109,-3654.8,0.00022456,2]
[374982992,1753488655118,-460.0,0.00022456,2]
[374982993,1753488655128,-460.0,0.00022456,2]
[374982994,1753488655137,-630.63,0.00022456,2]
[374982995,1753488655149,-460.0,0.00022456,2]
[374982996,1753488655160,-460.0,0.00022456,2]
[374982997,1753488655169,-500.0,0.00022456,2]
[374982998,1753488655178,-586.3,0.00022456,2]
[374982999,1753488655187,-460.0,0.00022456,2]
[374983000,1753488655198,-460.0,0.00022456,2]
[374983001,1753488655207,-460.0,0.00022456,2]
[374983002,1753488655217,-460.0,0.00022457,2]
[374983003,1753488655227,-460.0,0.00022457,2]
[374983004,1753488655236,-460.0,0.00022457,2]
[374983005,1753488655245,-460.0,0.00022457,2]
[374983006,1753488655255,-460.0,0.00022457,2]
[374983007,1753488655265,-460.0,0.00022457,2]
[374983008,1753488655274,-460.0,0.00022457,2]
[374983009,1753488655284,-1588.716506,0.00022457,7]
[374983010,1753488655293,-1588.716506,0.00022457,7]
[374983011,1753488655304,-641.9,0.00022457,2]
[374983012,1753488655315,-460.0,0.00022457,2]
[374983013,1753488655325,-862.63,0.00022457,2]
[374983014,1753488655335,-460.0,0.00022457,2]
[374983015,1753488655344,-151.0,0.00022457,2]
[374983016,1753488655353,-460.0,0.00022457,2]
[374983017,1753488655363,-819.06,0.00022457,2]
[374983018,1753488655373,-665.9,0.00022457,2]
[374983019,1753488655383,-706.17,0.00022457,2]
[374983020,1753488655392,-460.0,0.00022458,2]
[374983021,1753488655402,-1296.14,0.00022465,2]
[374983022,1753488655412,-7819.62083626,0.00022483,2]
[374983023,1753488655422,-564.68571756,0.00022512,2]
[374983024,1753488655431,-1500.0,0.00022516,2]
[374983025,1753488655441,-1880.96517336,0.00022516,2]
[374983026,1753488655450,-300.0,0.00022521,2]
[374983027,1753488655459,-546.64,0.00022545,2]
[374983028,1753488655468,-460.0,0.00022629,2]
[374983029,1753488655478,-460.0,0.00022629,2]
[374983030,1753488655487,-460.0,0.00022629,2]
[374983031,1753488655496,-1383.53,0.00022629,2]
[374983032,1753488655506,-389.33480681,0.00022629,2]
[374983033,1753488655515,-380.0,0.00022644,2]
[374983034,1753488655525,-3315.82,0.00022728,2]
[374983035,1753488655536,-2047.68,0.00022728,2]
[374983036,1753488655545,-460.0,0.00022728,2]
[374983037,1753488655556,-2016.92,0.00022728,2]
[374983038,1753488655565,-460.0,0.00022728,2]
[374983039,1753488655575,-1442.16,0.00022728,2]
[374983040,1753488655584,-460.0,0.00022728,2]
[374983041,1753488655594,-904.06,0.00022728,2]
[374983042,1753488655603,-460.0,0.00022728,2]
[374983043,1753488655613,-460.0,0.00022728,2]
[374983044,1753488655622,-460.0,0.00022728,2]
[374983045,1753488655632,-460.0,0.00022728,2]
[374983046,1753488655641,-460.0,0.0002273,2]
[374983047,1753488655650,-460.0,0.0002273,2]
[374983048,1753488655660,-460.0,0.0002273,2]
[374983049,1753488655670,-1000.9,0.0002273,2]
[374983050,1753488655679,-460.0,0.0002273,2]
[374983051,1753488655689,-674.06,0.0002273,2]
[374983052,1753488655699,-460.0,0.0002273,2]
[374983053,1753488655709,-460.0,0.0002273,2]
[374983054,1753488655719,-460.0,0.0002273,2]
[374983055,1753488655730,-460.0,0.0002273,2]
[374983056,1753488655740,-3654.8,0.0002273,2]
[374983057,1753488655751,-460.0,0.0002273,2]
[374983058,1753488655760,-460.0,0.0002273,2]
[374983059,1753488655770,-630.63,0.0002273,2]
[374983060,1753488655779,-460.0,0.0002273,2]
[374983061,1753488655789,-460.0,0.0002273,2]
[374983062,1753488655799,-586.3,0.0002273,2]
[374983063,1753488655810,-460.0,0.0002273,2]
[374983064,1753488655819,-460.0,0.0002273,2]
[374983065,1753488655829,-460.0,0.0002273,2]
[374983066,1753488655838,-460.0,0.00022731,2]
[374983067,1753488655848,-460.0,0.00022731,2]
[374983068,1753488655858,-460.0,0.00022731,2]
[374983069,1753488655867,-460.0,0.00022731,2]
[374983070,1753488655876,-460.0,0.00022731,2]
[374983071,1753488655886,-460.0,0.00022731,2]
[374983072,1753488655896,-460.0,0.00022731,2]
[374983073,1753488655905,-641.9,0.00022731,2]
[374983074,1753488655992,-460.0,0.00022731,2]
[374983075,1753488656002,-862.63,0.00022731,2]
[374983076,1753488656012,-460.0,0.00022731,2]
[374983077,1753488656023,-819.06,0.00022731,2]
[374983078,1753488656033,-665.9,0.00022731,2]
[374983079,1753488656043,-706.17,0.00022731,2]
[374983080,1753488656053,-460.0,0.00022732,2]
[374983081,1753488656063,-151.0,0.00022854,7]
[374983082,1753488656073,-150.0,0.000229,2]
[374983083,1753488656083,-460.0,0.00022903,2]
[374983084,1753488656094,-460.0,0.00022903,2]
[374983085,1753488656105,-1383.53,0.00022903,2]
[374983086,1753488656115,-3474.7560642,0.00022909,2]
[374983087,1753488656125,-160.0,0.00023,2]
[374983088,1753488656136,-3315.82,0.00023002,2]
[374983089,1753488656146,-2047.68,0.00023002,2]
[374983090,1753488656158,-460.0,0.00023002,2]
[374983091,1753488656168,-2016.92,0.00023002,2]
[374983092,1753488656178,-460.0,0.00023002,2]
[374983093,1753488656188,-1442.16,0.00023002,2]
[374983094,1753488656198,-460.0,0.00023002,2]
[374983095,1753488656207,-904.06,0.00023002,2]
[374983096,1753488656218,-460.0,0.00023002,2]
[374983097,1753488656227,-460.0,0.00023002,2]
[374983098,1753488656237,-460.0,0.00023002,2]
[374983099,1753488656247,-230.12350431,0.00023002,2]
[374983100,1753488656257,-460.0,0.00023004,2]
[374983101,1753488656267,-460.0,0.00023004,2]
[374983102,1753488656276,-460.0,0.00023004,2]
[374983103,1753488656286,-1000.9,0.00023004,2]
[374983104,1753488656296,-460.0,0.00023004,2]
[374983105,1753488656305,-674.06,0.00023004,2]
[374983106,1753488656315,-460.0,0.00023004,2]
[374983107,1753488656325,-460.0,0.00023004,2]
[374983108,1753488656335,-460.0,0.00023004,2]
[374983109,1753488656344,-3654.8,0.00023004,2]
[374983110,1753488656353,-460.0,0.00023004,2]
[374983111,1753488656363,-460.0,0.00023004,2]
[374983112,1753488656372,-630.63,0.00023004,2]
[374983113,1753488656382,-460.0,0.00023004,2]
[374983114,1753488656391,-460.0,0.00023004,2]
[374983115,1753488656401,-329.74573757,0.00023004,2]
[374983116,1753488656410,-586.3,0.00023004,2]
[374983117,1753488656420,-460.0,0.00023004,2]
[374983118,1753488656430,-460.0,0.00023004,2]
[374983119,1753488656439,-460.0,0.00023004,2]
[374983120,1753488656449,-460.0,0.00023005,2]
[374983121,1753488656458,-460.0,0.00023005,2]
[374983122,1753488656467,-460.0,0.00023005,2]
[374983123,1753488656476,-460.0,0.00023005,2]
[374983124,1753488656485,-299.77,0.00023005,2]
[374983125,1753488656494,-460.0,0.00023005,2]
[374983126,1753488656503,-1588.716506,0.00023005,7]
[374983127,1753488656513,-1588.71650833,0.00023005,7]
[374983128,1753488656523,-641.9,0.00023005,2]
[374983129,1753488656532,-460.0,0.00023005,2]
[374983130,1753488656541,-862.63,0.00023005,2]
[374983131,1753488656551,-151.0,0.00023005,2]
[374983132,1753488656560,-460.0,0.00023005,2]
[374983133,1753488656570,-819.06,0.00023005,2]
[374983134,1753488656580,-665.9,0.00023005,2]
[374983135,1753488656589,-706.17,0.00023005,2]
[374983136,1753488656599,-460.0,0.00023006,2]
[374983137,1753488656608,-450.0,0.00023068,2]
[374983138,1753488656618,-3474.7560642,0.00023124,2]
[374983139,1753488656627,-575.92,0.00023127,5]
[374983140,1753488656637,-153.0,0.00023138,2]
[374983141,1753488656647,-460.0,0.00023177,2]
[374983142,1753488656656,-460.0,0.00023177,2]
[374983143,1753488656665,-1383.53,0.00023177,2]
[374983144,1753488656676,-575.94,0.00023227,5]
[374983145,1753488656686,-500.0,0.00023256,2]
[374983146,1753488656696,-3315.82,0.00023276,2]
[374983147,1753488656706,-2047.68,0.00023276,2]
[374983148,1753488656715,-460.0,0.00023276,2]
[374983149,1753488656725,-2016.92,0.00023276,2]
[374983150,1753488656735,-1442.16,0.00023276,2]
[374983151,1753488656744,-460.0,0.00023276,2]
[374983152,1753488656754,-904.06,0.00023276,2]
[374983153,1753488656764,-460.0,0.00023276,2]
[374983154,1753488656774,-460.0,0.00023276,2]
[374983155,1753488656783,-460.0,0.00023276,2]
[374983156,1753488656792,-460.0,0.00023278,2]
[374983157,1753488656802,-460.0,0.00023278,2]
[374983158,1753488656812,-460.0,0.00023278,2]
[374983159,1753488656822,-1000.9,0.00023278,2]
[374983160,1753488656832,-599.76,0.00023278,2]
[374983161,1753488656843,-674.06,0.00023278,2]
[374983162,1753488656853,-460.0,0.00023278,2]
[374983163,1753488656863,-460.0,0.00023278,2]
[374983164,1753488656873,-460.0,0.00023278,2]
[374983165,1753488656883,-3654.8,0.00023278,2]
[374983166,1753488656893,-460.0,0.00023278,2]
[374983167,1753488656903,-460.0,0.00023278,2]
[374983168,1753488656915,-630.63,0.00023278,2]
[374983169,1753488656925,-460.0,0.00023278,2]
[374983170,1753488656936,-460.0,0.00023278,2]
[374983171,1753488656947,-586.3,0.00023278,2]
[374983172,1753488656957,-460.0,0.00023278,2]
[374983173,1753488656967,-225.77,0.00023278,2]
[374983174,1753488656976,-460.0,0.00023278,2]
[374983175,1753488656986,-460.0,0.00023279,2]
[374983176,1753488656996,-460.0,0.00023279,2]
[374983177,1753488657006,-460.0,0.00023279,2]
[374983178,1753488657016,-460.0,0.00023279,2]
[374983179,1753488657027,-460.0,0.00023279,2]
[374983180,1753488657037,-641.9,0.00023279,2]
[374983181,1753488657049,-460.0,0.00023279,2]
[374983182,1753488657059,-862.63,0.00023279,2]
[374983183,1753488657069,-460.0,0.00023279,2]
[374983184,1753488657079,-819.06,0.00023279,2]
[374983185,1753488657089,-665.9,0.00023279,2]
[374983186,1753488657099,-706.17,0.00023279,2]
[374983187,1753488657108,-495.84,0.0002328,2]
[374983188,1753488657118,-3474.7560642,0.00023346,2]
[374983189,1753488657127,-154.75786002,0.00023358,2]
[374983190,1753488657137,-460.0,0.00023451,2]
[374983191,1753488657150,-1383.53,0.00023451,2]
[374983192,1753488657160,-3315.82,0.0002355,2]
[374983193,1753488657169,-2047.68,0.0002355,2]
[374983194,1753488657179,-460.0,0.0002355,2]
[374983195,1753488657189,-2016.92,0.0002355,2]
[374983196,1753488657198,-1442.16,0.0002355,2]
[374983197,1753488657208,-460.0,0.0002355,2]
[374983198,1753488657218,-904.06,0.0002355,2]
[374983199,1753488657229,-460.0,0.0002355,2]
[374983200,1753488657238,-460.0,0.0002355,2]
[374983201,1753488657247,-460.0,0.00023552,2]
[374983202,1753488657258,-460.0,0.00023552,2]
[374983203,1753488657269,-460.0,0.00023552,2]
[374983204,1753488657279,-1000.9,0.00023552,2]
[374983205,1753488657290,-674.06,0.00023552,2]
[374983206,1753488657300,-460.0,0.00023552,2]
[374983207,1753488657310,-460.0,0.00023552,2]
[374983208,1753488657320,-460.0,0.00023552,2]
[374983209,1753488657330,-3654.8,0.00023552,2]
[374983210,1753488657341,-460.0,0.00023552,2]
[374983211,1753488657351,-630.63,0.00023552,2]
[374983212,1753488657363,-460.0,0.00023552,2]
[374983213,1753488657372,-460.0,0.00023552,2]
[374983214,1753488657382,-586.3,0.00023552,2]
[374983215,1753488657393,-460.0,0.00023552,2]
[374983216,1753488657403,-460.0,0.00023552,2]
[374983217,1753488657414,-460.0,0.00023553,2]
[374983218,1753488657425,-460.0,0.00023553,2]
[374983219,1753488657435,-460.0,0.00023553,2]
[374983220,1753488657445,-641.9,0.00023553,2]
[374983221,1753488657455,-460.0,0.00023553,2]
[374983222,1753488657466,-862.63,0.00023553,2]
[374983223,1753488657477,-460.0,0.00023553,2]
[374983224,1753488657487,-819.06,0.00023553,2]
[374983225,1753488657496,-665.9,0.00023553,2]
[374983226,1753488657506,-706.17,0.00023553,2]
[374983227,1753488657516,-200.0,0.00023561,2]
[374983228,1753488657525,-200.0,0.00023561,2]
[374983229,1753488657536,-183.46287209,0.00023561,2]
[374983230,1753488657546,-34407.1,0.000236,2]
[374983231,1753488657556,-3474.7560642,0.00023612,2]
[374983232,1753488657565,-151.0,0.00023646,2]
[374983233,1753488657574,-25000.0,0.00023646,2]
[374983234,1753488657583,-151.0,0.00023646,2]
[374983235,1753488657593,-5448.58211483,0.00023646,2]
[374983236,1753488657602,-151.0,0.00023646,2]
[374983237,1753488657611,-151.0,0.00023646,2]
[374983238,1753488657689,-151.0,0.00023646,2]
[374983239,1753488657698,-215.0738,0.00023646,2]
[374983240,1753488657707,-151.0,0.00023646,2]
[374983241,1753488657718,-151.0,0.00023646,2]
[374983242,1753488657728,-151.0,0.00023646,2]
[374983243,1753488657738,-151.0,0.00023646,2]
[374983244,1753488657748,-151.0,0.00023646,2]
[374983245,1753488657758,-151.0,0.00023646,2]
[374983246,1753488657768,-151.0,0.00023646,2]
[374983247,1753488657778,-3801.642,0.00023646,2]
[374983248,1753488657788,-151.0,0.00023646,2]
[374983249,1753488657798,-151.0,0.00023646,2]
[374983250,1753488657809,-151.0,0.00023646,2]
[374983251,1753488657819,-151.0,0.00023646,2]
[374983252,1753488657829,-151.0,0.00023646,2]
[374983253,1753488657839,-151.0,0.00023646,2]
[374983254,1753488657849,-151.0,0.00023646,2]
[374983255,1753488657859,-151.0,0.00023646,2]
[374983256,1753488657869,-151.0,0.00023646,2]
[374983257,1753488657878,-151.0,0.00023646,2]
[374983258,1753488657888,-151.0,0.00023646,2]
[374983259,1753488657897,-151.0,0.00023646,2]
[374983260,1753488657906,-151.0,0.00023646,2]
[374983261,1753488657916,-151.0,0.00023646,2]
[374983262,1753488657925,-151.0,0.00023646,2]
[374983263,1753488657935,-151.0,0.00023646,2]
[374983264,1753488657944,-151.0,0.00023646,2]
[374983265,1753488657954,-151.0,0.00023646,2]
[374983266,1753488657964,-151.0,0.00023646,2]
[374983267,1753488657974,-250.65210065,0.00023646,2]
[374983268,1753488657983,-151.0,0.00023646,2]
[374983269,1753488657993,-151.0,0.00023646,2]
[374983270,1753488658003,-3942.302754,0.00023701,2]
[374983271,1753488658013,-1383.53,0.00023725,2]
[374983272,1753488658023,-546.64,0.00023734,2]
[374983273,1753488658032,-3818.04135009,0.00023756,2]
[374983274,1753488658042,-3315.82,0.00023824,2]
[374983275,1753488658053,-2047.68,0.00023824,2]
[374983276,1753488658063,-460.0,0.00023824,2]
[374983277,1753488658072,-2016.92,0.00023824,2]
[374983278,1753488658085,-1442.16,0.00023824,2]
[374983279,1753488658096,-904.06,0.00023824,2]
[374983280,1753488658106,-399.0,0.00023824,2]
[374983281,1753488658116,-460.0,0.00023826,2]
[374983282,1753488658125,-460.0,0.00023826,2]
[374983283,1753488658135,-151.0,0.00023826,7]
[374983284,1753488658148,-460.0,0.00023826,2]
[374983285,1753488658158,-1000.9,0.00023826,2]
[374983286,1753488658168,-674.06,0.00023826,2]
[374983287,1753488658177,-460.0,0.00023826,2]
[374983288,1753488658187,-460.0,0.00023826,2]
[374983289,1753488658196,-460.0,0.00023826,2]
[374983290,1753488658207,-3654.8,0.00023826,2]
[374983291,1753488658217,-460.0,0.00023826,2]
[374983292,1753488658227,-630.63,0.00023826,2]
[374983293,1753488658236,-586.3,0.00023826,2]
[374983294,1753488658246,-460.0,0.00023826,2]
[374983295,1753488658256,-460.0,0.00023827,2]
[374983296,1753488658266,-460.0,0.00023827,2]
[374983297,1753488658277,-460.0,0.00023827,2]
[374983298,1753488658287,-641.9,0.00023827,2]
[374983299,1753488658297,-460.0,0.00023827,2]
[374983300,1753488658307,-862.63,0.00023827,2]
[374983301,1753488658318,-460.0,0.00023827,2]
[374983302,1753488658329,-819.06,0.00023827,2]
[374983303,1753488658338,-665.9,0.00023827,2]
[374983304,1753488658348,-706.17,0.00023827,2]
[374983305,1753488658357,-566.64012855,0.000239,2]
[374983306,1753488658367,-3474.7560642,0.00023923,2]
[374983307,1753488658377,-407.0,0.00023974,2]
[374983308,1753488658389,-1383.53,0.00023999,2]
[374983309,1753488658398,-5382.55,0.00024,7]
[374983310,1753488658408,-526.33361954,0.00024,7]
[374983311,1753488658417,-3315.82,0.00024098,2]
[374983312,1753488658428,-2047.68,0.00024098,2]
[374983313,1753488658437,-2016.92,0.00024098,2]
[374983314,1753488658447,-1442.16,0.00024098,2]
[374983315,1753488658457,-904.06,0.00024098,2]
[374983316,1753488658466,-460.0,0.000241,2]
[374983317,1753488658475,-241.92,0.000241,2]
[374983318,1753488658485,-1000.9,0.000241,2]
[374983319,1753488658495,-674.06,0.000241,2]
[374983320,1753488658506,-162.65,0.000241,2]
[374983321,1753488658518,-460.0,0.000241,2]
[374983322,1753488658530,-460.0,0.000241,2]
[374983323,1753488658540,-3654.8,0.000241,2]
[374983324,1753488658552,-460.0,0.000241,2]
[374983325,1753488658562,-630.63,0.000241,2]
[374983326,1753488658571,-586.3,0.000241,2]
[374983327,1753488658581,-197.45,0.00024101,2]
[374983328,1753488658593,-240.32,0.00024101,2]
[374983329,1753488658602,-460.0,0.00024101,2]
[374983330,1753488658612,-641.9,0.00024101,2]
[374983331,1753488658622,-862.63,0.00024101,2]
[374983332,1753488658633,-460.0,0.00024101,2]
[374983333,1753488658643,-819.06,0.00024101,2]
[374983334,1753488658652,-665.9,0.00024101,2]
[374983335,1753488658662,-706.17,0.00024101,2]
[374983336,1753488658672,-1022.34,0.000242,7]
[374983337,1753488658683,-403.36,0.000242,2]
[374983338,1753488658693,-1383.53,0.00024273,2]
[374983339,1753488658703,-3474.7560642,0.00024292,2]
[374983340,1753488658713,-3315.82,0.00024372,2]
[374983341,1753488658723,-2047.68,0.00024372,2]
[374983342,1753488658734,-2016.92,0.00024372,2]
[374983343,1753488658744,-1442.16,0.00024372,2]
[374983344,1753488658754,-904.06,0.00024372,2]
[374983345,1753488658764,-460.0,0.00024374,2]
[374983346,1753488658774,-1000.9,0.00024374,2]
[374983347,1753488658784,-674.06,0.00024374,2]
[374983348,1753488658795,-460.0,0.00024374,2]
[374983349,1753488658805,-406.4,0.00024374,2]
[374983350,1753488658815,-3654.8,0.00024374,2]
[374983351,1753488658826,-460.0,0.00024374,2]
[374983352,1753488658837,-630.63,0.00024374,2]
[374983353,1753488658847,-586.3,0.00024374,2]
[374983354,1753488658857,-460.0,0.00024375,2]
[374983355,1753488658867,-641.9,0.00024375,2]
[374983356,1753488658877,-862.63,0.00024375,2]
[374983357,1753488658887,-460.0,0.00024375,2]
[374983358,1753488658897,-819.06,0.00024375,2]
[374983359,1753488658907,-665.9,0.00024375,2]
[374983360,1753488658917,-706.17,0.00024375,2]
[374983361,1753488658927,-309.28,0.000244,7]
[374983362,1753488658936,-159.612422,0.00024401,8]
[374983363,1753488658946,-500.0,0.00024467,2]
[374983364,1753488658956,-3474.75606424,0.00024502,2]
[374983365,1753488658966,-1383.53,0.00024547,2]
[374983366,1753488658976,-500.0,0.00024635,2]
[374983367,1753488658986,-3315.82,0.00024646,2]
[374983368,1753488658996,-2047.68,0.00024646,2]
[374983369,1753488659005,-2016.92,0.00024646,2]
[374983370,1753488659015,-1442.16,0.00024646,2]
[374983371,1753488659025,-904.06,0.00024646,2]
[374983372,1753488659036,-460.0,0.00024648,2]
[374983373,1753488659046,-1000.9,0.00024648,2]
[374983374,1753488659057,-674.06,0.00024648,2]
[374983375,1753488659067,-233.44,0.00024648,2]
[374983376,1753488659076,-3654.8,0.00024648,2]
[374983377,1753488659086,-460.0,0.00024648,2]
[374983378,1753488659096,-630.63,0.00024648,2]
[374983379,1753488659106,-586.3,0.00024648,2]
[374983380,1753488659116,-499.84,0.00024649,2]